Cogmind - Beta 12 @@@ ROGUE MODE // 2023.09.05 @ 19:47:48 Player: Kel Result: Self-destructed Performance ------------- Evolutions (1) 500 Regions Visited (2) 400 Robots Destroyed (33) 165 Value Destroyed (1017) 1017 Prototype IDs (0) 0 Alien Tech Used (0) 0 Bonus (0) 0 TOTAL SCORE: 2082 Bonus ------- None Cogmind --------- Core Integrity 170/400 Matter 300/300 Energy 486/500 System Corruption 7% Temperature Cool (0) Movement Walking (190) Ox1 Location -9/Materials Parts ------- > --- POWER (1) -------- Ion Engine > --- PROPULSION (2) --- Aluminum Leg > --- UTILITY (3) ------ Small Storage Unit High-capacity Battery Shield Generator > --- WEAPON (3) ------- Medium Laser Mace > --- INVENTORY (8) ---- Improved Ion Engine Heat Sink Light Armor Plating EM Pulse Gun Shotgun Grenade Launcher Peak State ------------ > --- POWER ------------ Ion Engine > --- PROPULSION ------- Aluminum Leg Aluminum Leg > --- UTILITY ---------- Small Storage Unit Sensor Array Light Armor Plating > --- WEAPON ----------- Medium Laser Shotgun Mace > --- INVENTORY -------- Aluminum Leg Aluminum Leg High-capacity Battery Shield Generator EM Pulse Gun Medium Laser Shotgun Grenade Launcher [Rating: 12] Favorites ----------- Power Ion Engine Engine Ion Engine Propulsion Aluminum Leg Leg Aluminum Leg Utility Small Storage Unit Device Shield Generator Storage Small Storage Unit Protection Light Armor Plating Weapon Medium Laser Energy Gun Medium Laser Ballistic Gun Shotgun Launcher Grenade Launcher Impact Weapon Mace Slashing Weapon Mining Claw Build | -11 -10 -9 ------- Run | Jun Mat Mat Slots Evolved 2 | . . 2 Power . | . . . Propulsion . | . . . Utility 1 | . . 1 Weapon 1 | . . 1 Parts Attached 22 | 6 4 12 Power 3 | 1 . 2 Engine 3 | 1 . 2 Core . | . . . Reactor . | . . . Propulsion 4 | 2 . 2 Treads . | . . . Leg 4 | 2 . 2 Wheel . | . . . Hover . | . . . Flight . | . . . Utility 8 | 1 3 4 Device 2 | . . 2 Storage 5 | 1 3 1 Processor . | . . . Hackware . | . . . Protection 1 | . . 1 Artifact . | . . . Weapon 7 | 2 1 4 Energy Gun 3 | 2 . 1 Energy Cannon . | . . . Ballistic Gun 1 | . . 1 Ballistic Cannon . | . . . Launcher 1 | . 1 . Special Weapon . | . . . Impact Weapon 1 | . . 1 Slashing Weapon 1 | . . 1 Piercing Weapon . | . . . Special Melee Weapon . | . . . Unidentified Prototypes . | . . . Parts Lost 9 | . . 9 Power 2 | . . 2 Propulsion 3 | . . 3 Utility 2 | . . 2 Weapon 2 | . . 2 Highest Loss Streak 5 | . . 5 To Critical Strikes . | . . . Average Slot Usage (%) 94 | . 96 92 Engine 10 | . 14 6 Leg 24 | . 28 21 Device 5 | . . 10 Storage 21 | . 24 19 Protection 1 | . . 2 Energy Gun 13 | . 16 10 Ballistic Gun 4 | . . 9 Launcher 6 | . 11 . Impact Weapon 4 | . . 8 Slashing Weapon 1 | . . 2 Naked Turns . | . . . Heaviest Build 94 | 14 94 23 Greatest Support 20 | 3 20 20 Greatest Overweight (x) 31 | 4 31 2 Average Overweight (x) . | 2 . . Largest Inventory Capacity 25 | 8 25 8 Average Capacity 8 | 7 8 8 Most Carried 8 | 6 8 8 Average Carried 6 | 4 7 5 Final Capacity 8 | 8 8 8 Final Carried 8 | 6 8 6 Class Distribution -------------------- 100% | Mutant Dominant Class ---------------- Mutant | -10/Materials Mutant | -9/Materials Resources | -11 -10 -9 ----------- Run | Jun Mat Mat Matter Collected 694 | 202 215 277 Remotely . | . . . Salvage Created 868 | . 240 628 Parts 62 | . 29 33 Haulers Intercepted . | . . . Recyclers Shooed 1 | . . 1 Parts Field Recycled . | . . . Retrieved Matter . | . . . Parts Self-Destructed . | . . . Prevented . | . . . Kills | -11 -10 -9 ------- Run | Jun Mat Mat Combat Hostiles Destroyed 26 | . 11 15 Melee 4 | . . 4 Guns 10 | . 2 8 AOE 9 | . 9 . Classes Destroyed 9 | . 5 4 Worker 2 | . 1 1 Builder 1 | . 1 . Recycler 1 | . . 1 Watcher 3 | . 2 1 Swarmer 3 | . 3 . Grunt 18 | . 8 10 Brawler 1 | . . 1 Duelist 1 | . . 1 Sentry 3 | . . 3 Best Kill Streak 4 | . 4 4 Combat Bots Only 3 | . 3 3 Max Kills in Single Turn 3 | . 3 1 Gunslinging . | . . . Exploded 3 | . 3 . Melee 1 | . . 1 Uniques/NPCs Destroyed . | . . . Combat | -11 -10 -9 -------- Run | Jun Mat Mat Damage Taken 1239 | . 216 1023 Core 275 | . 45 230 Absorbed by Shields 103 | . . 103 Core Remaining (%) 91 | 100 82 . Volleys Fired 65 | . 31 34 Largest 1 | . 1 1 Hottest 50 | . 50 23 Shots Fired 65 | . 31 34 Gun 48 | . 14 34 Cannon . | . . . Launcher 17 | . 17 . Special . | . . . Kinetic 34 | . . 34 Thermal 14 | . 14 . Explosive 17 | . 17 . Electromagnetic . | . . . Robot Hit Streak 17 | . 5 17 Robot Miss Streak 4 | . 4 2 Penetration Max . | . . . Secondary Targets . | . . . Shots Hit Robots 79 | . 14 65 Core Hits 48 | . 24 24 Critical Kills . | . . . Critical Parts Destroyed 3 | . . 3 Critical Strikes 3 | . . 3 Destroy 1 | . . 1 Smash 2 | . . 2 Melee Attacks 40 | . . 40 Impact 40 | . . 40 Slashing . | . . . Piercing . | . . . Sneak Attacks 2 | . . 2 Combat Hostiles . | . . . Follow-up Attacks . | . . . Damage Inflicted 2420 | . 1063 1357 Guns 661 | . 110 551 Cannons . | . . . Explosions 953 | . 953 . Melee 806 | . . 806 Ramming . | . . . Kinetic 551 | . . 551 Thermal 110 | . 110 . Explosive 953 | . 953 . Electromagnetic . | . . . Impact 806 | . . 806 Slashing . | . . . Piercing . | . . . Highest Corruption 7 | . 1 7 Average Corruption 5 | . 1 6 Corruption Purged . | . . . Corruption Blocked . | . . . Effects 10 | . . 10 Message Errors 6 | . . 6 Heat Flow Errors 2 | . . 2 Energy Discharges 1 | . . 1 Data Loss (minor) 1 | . . 1 Overload Shots . | . . . Overflow Damage 160 | . 58 102 Projectiles . | . . . Explosions 58 | . 58 . Melee 102 | . . 102 Knockbacks 5 | . . 5 Impact 5 | . . 5 Kinetic . | . . . Secondary . | . . . Self-Inflicted Damage . | . . . Shots . | . . . Rammed . | . . . Targets Rammed . | . . . Kicked . | . . . Crushed . | . . . Highest Temperature 245 | . 132 245 Average Temperature 58 | . 43 109 Received Heat Transfer 404 | . 108 296 Siege Activations . | . . . Robots Corrupted . | . . . Combat Hostiles . | . . . Parts Fried 6 | . . 6 Impact Corruptions 7 | . . 7 Robots Melted . | . . . Combat Hostiles . | . . . Parts Melted 1 | . 1 . Heat Transferred 333 | . 333 . Parts Sabotaged . | . . . Parts Stolen . | . . . Parts Stripped . | . . . Power Chain Reactions . | . . . Missiles Intercepted . | . . . Alert | -11 -10 -9 ------- Run | Jun Mat Mat Peak Influence 386 | . 386 359 Initial 162 | . . 162 Average 132 | . 97 192 Maximum Alert Level 1 | . 1 1 Low Security (%) 70 | 100 68 66 Level 1 29 | . 31 33 Level 2 . | . . . Level 3 . | . . . Level 4 . | . . . Level 5 . | . . . High Security . | . . . Max Security . | . . . Squads Dispatched 5 | . 1 4 Investigation 3 | . . 3 Extermination . | . . . Reinforcement 2 | . 1 1 Assault . | . . . Garrison . | . . . Intercept . | . . . Searches Triggered . | . . . Construction Impeded . | . . . Haulers Reinforced . | . . . Active Scanning Responses . | . . . Cargo Convoy Interrupts . | . . . Stealth | -11 -10 -9 --------- Run | Jun Mat Mat Distress Signals 4 | . 1 3 Communications Jammed . | . . . Distress Signals . | . . . Times Spotted 43 | . 19 24 Peak Tracking Total 7 | . 4 7 Tactical Retreats 1 | . . 1 Traps | -11 -10 -9 ------- Run | Jun Mat Mat Traps Triggered 4 | . 1 3 Indirectly . | . . . Trap Hack Attempts . | . . . Triggered . | . . . Disarmed . | . . . Reprogrammed . | . . . Reused . | . . . Traps Extracted . | . . . Installed . | . . . Triggered . | . . . Machines | -11 -10 -9 ---------- Run | Jun Mat Mat Machines Disabled 7 | . 7 . Max in Single Turn 2 | . 2 . Machines Repaired . | . . . Machines Sabotaged . | . . . Overloaded Fab Kills . | . . . Hacking | -11 -10 -9 --------- Run | Jun Mat Mat Machines Accessed 1 | . 1 . Terminals 1 | . 1 . Fabricators . | . . . Repair Stations . | . . . Recycling Units . | . . . Scanalyzers . | . . . Garrison Access . | . . . Total Hacks 3 | . 3 . Successful 3 | . 3 . Failed . | . . . Catastrophic . | . . . Database Lockouts . | . . . Manual . | . . . Terminals 3 | . 3 . Fabricators . | . . . Repair Stations . | . . . Recycling Units . | . . . Scanalyzers . | . . . Garrison Access . | . . . Terminal Hacks 3 | . 3 . Record 3 | . 3 . Fabricator Hacks . | . . . Repair Station Hacks . | . . . Recycling Unit Hacks . | . . . Scanalyzer . | . . . Garrison Access Hacks . | . . . Unauthorized Hacks . | . . . Terminals . | . . . Fabricators . | . . . Repair Stations . | . . . Recycling Units . | . . . Scanalyzers . | . . . Garrison Access . | . . . Data Cores Recovered . | . . . Used . | . . . Hacking Detections 1 | . 1 . Full Trace Events . | . . . Feedback Events . | . . . Feedback Blocked . | . . . Robot Schematics Acquired . | . . . Robots Built . | . . . Authchips . | . . . Time . | . . . Total Robot Build Rating . | . . . Part Schematics Acquired . | . . . Parts Built . | . . . Authchips . | . . . Time . | . . . Total Part Build Rating . | . . . Parts Repaired . | . . . Time . | . . . Parts Recycled . | . . . Recycled Matter . | . . . Retrieved Matter . | . . . Retrieved Components . | . . . Parts Scanalyzed . | . . . Part Schematics Acquired . | . . . Parts Damaged . | . . . Bothacking | -11 -10 -9 ------------ Run | Jun Mat Mat Used RIF Installer . | . . . Robots Hacked . | . . . Non-combat . | . . . Combat . | . . . Robot Hacks Applied . | . . . Relay Couplers Released . | . . . Fabnet Peak Effective % . | . . . Robots Rewired . | . . . Allies Hacked . | . . . Hacks Repelled . | . . . Allies | -11 -10 -9 -------- Run | Jun Mat Mat Total Allies . | . . . Largest Group . | . . . Highest-Rated Group . | . . . Highest-Rated Ally . | . . . Total Orders . | . . . Ally Attacks . | . . . Total Damage . | . . . Kills . | . . . Allies Corrupted . | . . . Allies Melted . | . . . Intel | -11 -10 -9 ------- Run | Jun Mat Mat Robot Analysis Total . | . . . Derelict Logs Recovered . | . . . Drone Launches . | . . . Drone Recoveries . | . . . Exploration | -11 -10 -9 ------------- Run | Jun Mat Mat Turns Passed 1781 | 165 795 821 Spaces Moved 888 | 76 482 330 Core 125 | 76 49 . Treads . | . . . Legs 763 | . 433 330 Wheels . | . . . Hover . | . . . Flight . | . . . Fastest Speed 50 | 50 120 120 Average Speed 152 | 199 136 166 Slowest Speed 1600 | 250 1600 260 Overloaded Moves . | . . . Propulsion Burnouts . | . . . Robots Hopped . | . . . Cave-ins Triggered . | . . . Exploration Rate (%) 36 | 5 69 35 Regions Visited 2 Branch Regions . Pre-discovered Areas . | . . . Known Exits Taken . | . . . Unknown Exits Taken 2 | 1 1 . Scrap Searched . | . . . Spaces Dug . | . . . Terrain Destroyed 88 | . 88 . Melee . | . . . Projectile . | . . . AOE 88 | . 88 . Terrain Rammed . | . . . Walls Destroyed . | . . . Machines Disabled . | . . . Actions | -11 -10 -9 --------- Run | Jun Mat Mat Total 1176 | 88 593 495 Wait 130 | . 60 70 Move 886 | 75 481 330 Hop . | . . . Pick Up 21 | 7 8 6 Fast Attach 11 | 5 2 4 Attach 9 | 1 1 7 Detach 2 | . 2 . Swap 2 | . 1 1 Drop 10 | . 7 3 Fire 65 | . 31 34 Melee 40 | . . 40 Ram . | . . . Kick . | . . . Crush . | . . . Escape Stasis . | . . . Rewire . | . . . Trap . | . . . Miscellaneous . | . . . Route ------- -11/Junkyard -10/Materials (discovered 3 exits: *Mat x2 / [*Min]) -9/Materials History --------- Turn | Location | Event 13 | -11/Junkyard | Discovered new exit (range 15) 166 | -11/Junkyard | Entered Materials 304 | -10/Materials | Build established: Mutant 380 | -10/Materials | Discovered new exit (range 5) 616 | -10/Materials | Discovered new exit (range 16) 739 | -10/Materials | Discovered new exit (range 15) 961 | -10/Materials | Entered another Materials area 961 | -9/Materials | Evolved 2 slots: Utility x1, Weapon x1 1383 | -9/Materials | Lost 5 parts (1p2n2u) 1766 | -9/Materials | Core integrity fell below 50% 1782 | -9/Materials | Self-destructed Last Messages --------------- 01716_ Acquired 8 matter. 01720_ K-01 Serf collects debris. 01720_ Acquired Imp. Ion Engine. 01724_ K-01 Serf collects debris. 01725_ R-06 Scavenger collects Lgt. Treads. 01725_ Acquired Heat Sink. 01728_ R-06 Scavenger collects Corrupted Lgt. Ion Engine. 01748_ Atomic Centrifuge disabled. 01751_ <%:RMJTJCIHWVNG8#C:SGXJCX5S 01751_ Shotgun destroyed. 01752_ K-01 Serf collects debris. 01767_ Y-45 Defender destroyed. 01767_ K-01 Serf collects debris. 01770_ Acquired 7 matter. 01770_ K-01 Serf collects debris. 01772_ Acquired Lgt. Armor Plating. 01773_ K-01 Serf collects debris. 01776_ Atomic Centrifuge disabled. 01778_ K-01 Serf collects debris. 01779_ Aluminum Leg destroyed. Map ----- +----------------------------------------------------+ | ??????????????????????????????? | | ??????????????????????????????? | | ??????????????????????????????? | | ??????????????????????????????? | | ???????# ????????????????????? | | ??????? ????????????????????? | | ??????? ????????????????????? | | ??????? ????????????????????? | | ??????? ????????????????????? | | ??????? ????????????????????? | | ??????? ????????????????????? | | ??????? ????????????????????? | | ??????? ????????????????????? | | ??????? ????????????????????? | | ??????? ! ????????????????????? | | ???????# #????????????????????? | | ???????# #???????????########## | | ######## #???????????# # | | # # #?########### """ # | | # "" # #?# %=# """ # | | # "T #%### """ """%+[""" # | | # "" # # """ """ #* ! # | | # # + """ """ # """ # | | # """ # # # """ # | | # """ Y% # "Y" # """ # | | # "" @# # """ =# ! %% # | | # k%# # ######+### | | # "" *# ############## =% # | | # """ # #??# # | | # """ # #??# T | | # # #??# # | | #### ### #??# """ """ " | | ???###?# #??# """ """ T | | ???????# #??# """ """ " | | ???????# #??# """ """ # | | ???????# ? """ """ # | | ???????# # | | ???????? ! | | ???????? ############### | | ???????? ??????????????# | | ?????????????????????????# ## | | ?????????????????????????# #? | | ?????????????????????????# #? | | ?????????????????????????# #? | | ?????????????????????????# #? | | ?????????????????????????# #? | | ?????????????????????????# #? | | ??????????????????####?### #? | | ???????????????? # #? | | ???????????????# """ """ # #? | +----------------------------------------------------+ Best States ------------- Heat Dissipation 28 Energy Generation 10 Energy Capacity 500 Matter Stores 378 Matter Capacity 400 Sight Range 16 Robot Scan Range 14 Terrain Scan Density 10 Armor Coverage 150 Evasion (%) 55 Item Schematics ----------------- None Robot Schematics ------------------ None Fabricated ------------ Nothing Alien Tech Used ----------------- None Achievements -------------- None Challenges ------------ None Game ------ Seed DirtyBombardmentShockpuncher Manual? 0 Play Time 00:23:56 Cumulative 9.0 hours Start 2023.09.05 @ 19:24:04 End 2023.09.05 @ 19:47:48 Sessions 1 Manual Loads 0 Difficulty Rogue Special Mode None Game No. 13 Rogue 13 Adventurer 0 Explorer 0 Win Type - Total 0 Types 0/0/0/0/0/0/0/0/0 Lore% 14 Gallery% 15 Achievement% 13 Wizard Run 0 Options --------- ASCII 0 Keyboard 1 Movement Numpad Keybinds 0 Fullscreen 1 Font 18/Terminus Map View 76x50 Tactical HUD 1 Map Filters NONE Filters NONE Steam 1 RUN: eaaf8944-d075-40f2-b138-70234765d6f8